fUSD/lending_fUSD_20240428
["ID","MTS","AMOUNT","RATE_DAILY","PERIOD"]
[14966,1714329054978,-215.52077558,0.00010958,2]
[14967,1714329054987,-500.0,0.00010958,2]
[14968,1714329054997,-961.79,0.00010958,2]
[14969,1714329055006,-500.0,0.00010958,2]
[14970,1714329055016,-1867.81,0.00010958,2]
[14971,1714329055025,-500.0,0.00010958,2]
[14972,1714329055035,-12060.68,0.00010958,2]
[14973,1714329055044,-2488.18,0.00010958,2]
[14974,1714329055054,-502.51245769,0.00010958,2]
[14975,1714329055064,-515.89,0.00010958,2]
[14977,1714329055084,-500.0,0.00010958,2]
[14979,1714329055103,-500.0,0.00010958,2]
[14981,1714329055122,-813.03,0.00010958,2]
[14983,1714329055143,-500.0,0.00010958,2]
[14985,1714329055164,-500.0,0.00010958,2]
[14987,1714329055184,-1112.39,0.00010958,2]
[14989,1714329055203,-2094.6,0.00010958,2]
[14991,1714329055224,-1384.84,0.00010958,2]
[14993,1714329055246,-500.0,0.00010958,2]
[14995,1714329055267,-3255.5,0.00010958,2]
[14997,1714329055286,-500.0,0.00010958,2]
[14999,1714329055307,-500.0,0.00010958,2]
[15001,1714329055327,-601.67,0.00010958,2]
[15003,1714329055347,-1318.58,0.00010958,2]
[15005,1714329055366,-500.0,0.00010958,2]
[15007,1714329055385,-500.0,0.00010958,2]
[15008,1714329055395,-648.58,0.00010958,2]
[15009,1714329055404,-500.0,0.00010958,2]
[15010,1714329055414,-6907.46,0.00010958,2]
[15011,1714329055423,-5225.05,0.00010958,2]
[15012,1714329055433,-669.27,0.00010958,2]
[15013,1714329055443,-500.0,0.00010958,2]
[15014,1714329055453,-1176.65,0.00010958,2]
[15015,1714329055462,-513.94,0.00010958,2]
[15017,1714329055482,-3651.69,0.00010958,2]
[15019,1714329055501,-500.0,0.00010958,2]
[15021,1714329055520,-500.0,0.00010958,2]
[15022,1714329055531,-500.0,0.00010958,2]
[15023,1714329055541,-500.0,0.00010958,2]
[15024,1714329055551,-500.0,0.00010958,2]
[15025,1714329055561,-371.75,0.00010958,2]
[15027,1714329055581,-6369.57,0.00010958,2]
[15028,1714329055591,-500.0,0.00010958,2]
[15029,1714329055600,-504.57101976,0.00010958,2]
[15031,1714329055620,-297.70246698,0.00010958,2]
[15032,1714329055629,-943.47,0.00010958,2]
[15033,1714329055639,-500.0,0.00010958,2]
[15035,1714329055661,-517.3,0.00010958,2]
[15036,1714329055673,-1866.42,0.00010958,2]
[15037,1714329055682,-3099.3,0.00010958,2]
[15038,1714329055693,-500.0,0.00010958,2]
[15039,1714329055703,-500.0,0.00010958,2]
[15040,1714329055713,-2707.94,0.00010958,2]
[15041,1714329055723,-821.68,0.00010958,2]
[15043,1714329055747,-1115.92,0.00010958,2]
[15045,1714329055768,-540.62,0.00010958,2]
[15047,1714329055789,-500.0,0.00010958,2]
[15049,1714329055811,-677.53,0.00010958,2]
[15051,1714329055830,-500.0,0.00010958,2]
[15052,1714329055839,-500.0,0.00010958,2]
[15053,1714329055849,-514.93926903,0.00010958,2]
[15054,1714329055860,-1835.72,0.00010958,2]
[15055,1714329055871,-500.0,0.00010958,2]
[15057,1714329055891,-540.14,0.00010958,2]
[15059,1714329055911,-150.0,0.00010959,2]
[15061,1714329055930,-5262.14,0.00010959,2]
[15063,1714329055949,-400.0,0.00010964,2]
[15064,1714329055959,-795.3189297,0.00011,2]
[15065,1714329055968,-1250.0,0.00011,2]
[15067,1714329055987,-500.0,0.0001123,2]
[15068,1714329055997,-17220.23077134,0.00011231,2]
[15069,1714329056007,-672.71,0.00011231,2]
[15071,1714329056026,-672.71,0.00011231,2]
[15072,1714329056036,-672.71,0.00011231,2]
[15073,1714329056078,-672.71,0.00011231,2]
[15075,1714329056097,-150.18614943,0.00011232,2]
[15076,1714329056107,-500.0,0.00011232,2]
[15077,1714329056117,-500.0,0.00011232,2]
[15079,1714329056137,-500.0,0.00011232,2]
[15080,1714329056147,-500.0,0.00011232,2]
[15081,1714329056156,-500.0,0.00011232,2]
[15083,1714329056177,-500.0,0.00011232,2]
[15084,1714329056186,-500.0,0.00011232,2]
[15085,1714329056196,-500.0,0.00011232,2]
[15086,1714329056206,-500.0,0.00011232,2]
[15087,1714329056215,-500.0,0.00011232,2]
[15088,1714329056226,-603.26303058,0.00011232,2]
[15089,1714329056236,-500.0,0.00011232,2]
[15090,1714329056245,-500.0,0.00011232,2]
[15091,1714329056255,-500.0,0.00011232,2]
[15092,1714329056265,-500.0,0.00011232,2]
[15093,1714329056275,-500.0,0.00011232,2]
[15095,1714329056295,-665.06,0.00011232,2]
[15097,1714329056314,-797.43,0.00011232,2]
[15099,1714329056334,-501.21073607,0.00011232,2]
[15101,1714329056354,-500.0,0.00011232,2]
[15103,1714329056374,-500.0,0.00011232,2]
[15105,1714329056394,-500.0,0.00011232,2]
[15107,1714329056414,-500.0,0.00011232,2]
[15109,1714329056434,-500.0,0.00011232,2]
[15111,1714329056453,-500.0,0.00011232,2]
[15113,1714329056473,-500.0,0.00011232,2]
[15115,1714329056493,-500.0,0.00011232,2]
[15117,1714329056513,-172.14589904,0.00011232,2]
[15119,1714329056532,-500.0,0.00011232,2]
[15121,1714329056552,-500.0,0.00011232,2]
[15123,1714329056572,-500.0,0.00011232,2]
[15125,1714329056592,-500.0,0.00011232,2]
[15127,1714329058614,-155.0,5.581e-05,2]
[15129,1714329058634,-3575.89633357,9.937e-05,2]
[15131,1714329058657,-265.760515,9.937e-05,2]
[15133,1714329058722,-542.0,0.00010267,2]
[15135,1714329058743,-500.0,0.00010958,2]
[15136,1714329058752,-500.0,0.00010958,2]
[15137,1714329058761,-500.0,0.00010958,2]
[15139,1714329058780,-317.0781018,0.00011,2]
[15141,1714329058798,-317.0781018,0.00011222,2]
[15143,1714329058816,-500.0,0.00011232,2]
[15145,1714329058835,-500.0,0.00011232,2]
[15147,1714329058853,-500.0,0.00011232,2]
[15148,1714329058863,-500.0,0.00011232,2]
[15149,1714329058872,-400.0,0.00011232,2]
[15150,1714329058881,-587.95,0.00011232,2]
[15151,1714329058891,-500.0,0.00011232,2]
[15153,1714329058909,-500.0,0.00011232,2]
[15155,1714329058927,-500.0,0.00011232,2]
[15156,1714329058937,-500.0,0.00011232,2]
[15157,1714329058946,-500.0,0.00011232,2]
[15159,1714329058964,-513.58,0.00011232,2]
[15161,1714329058982,-500.0,0.00011232,2]
[15163,1714329059001,-500.0,0.00011232,2]
[15164,1714329059010,-522.25,0.00011232,2]
[15165,1714329059019,-500.0,0.00011232,2]
[15166,1714329059029,-500.0,0.00011232,2]
[15167,1714329059038,-500.0,0.00011232,2]
[15168,1714329059048,-500.0,0.00011232,2]
[15169,1714329059057,-560.42,0.00011232,2]
[15170,1714329059066,-626.23,0.00011232,2]
[15171,1714329059076,-1310.66,0.00011232,2]
[15172,1714329059086,-500.0,0.00011232,2]
[15173,1714329059095,-254.89626657,0.00011232,2]
[15174,1714329059104,-500.0,0.00011232,2]
[15175,1714329059114,-500.0,0.00011232,2]
[15176,1714329059123,-500.0,0.00011232,2]
[15177,1714329059132,-500.0,0.00011232,2]
[15178,1714329059141,-1056.37,0.00011232,2]
[15179,1714329059151,-500.0,0.00011232,2]
[15180,1714329059160,-500.0,0.00011232,2]
[15181,1714329059169,-500.0,0.00011232,2]
[15183,1714329059187,-501.7,0.00011232,2]
[15185,1714329059205,-775.76,0.00011232,2]
[15187,1714329059223,-500.0,0.00011232,2]
[15189,1714329059241,-500.0,0.00011232,2]
[15191,1714329059260,-500.0,0.00011232,2]
[15193,1714329059279,-500.0,0.00011232,2]
[15195,1714329059297,-476.47490586,0.00011232,2]
[15197,1714329059386,-551.61,0.00011232,2]
[15199,1714329059405,-500.0,0.00011232,2]
[15201,1714329059424,-500.0,0.00011232,2]
[15203,1714329059443,-500.0,0.00011232,2]
[15204,1714329059453,-500.0,0.00011232,2]
[15205,1714329059463,-500.0,0.00011232,2]
[15206,1714329059472,-500.0,0.00011232,2]
[15207,1714329059482,-500.0,0.00011232,2]
[15208,1714329059491,-549.6,0.00011232,2]
[15209,1714329059500,-500.0,0.00011232,2]
[15210,1714329059510,-500.0,0.00011232,2]
[15211,1714329059519,-527.24,0.00011232,2]
[15212,1714329059528,-500.0,0.00011232,2]
[15213,1714329059537,-500.0,0.00011232,2]
[15214,1714329059546,-500.0,0.00011232,2]
[15215,1714329059555,-500.0,0.00011232,2]
[15216,1714329059565,-500.0,0.00011232,2]
[15217,1714329059575,-500.0,0.00011232,2]
[15218,1714329059585,-500.0,0.00011232,2]
[15219,1714329059594,-500.0,0.00011232,2]
[15220,1714329059604,-500.0,0.00011232,2]
[15221,1714329059613,-500.0,0.00011232,2]
[15222,1714329059623,-500.0,0.00011232,2]
[15223,1714329059632,-500.0,0.00011232,2]
[15224,1714329059641,-500.0,0.00011232,2]
[15225,1714329059651,-500.0,0.00011232,2]
[15226,1714329059664,-500.0,0.00011232,2]
[15227,1714329059673,-500.0,0.00011232,2]
[15229,1714329059692,-500.0,0.00011232,2]
[15231,1714329059715,-500.0,0.00011232,2]
[15233,1714329059737,-500.0,0.00011232,2]
[15235,1714329059755,-500.0,0.00011232,2]
[15237,1714329059774,-500.0,0.00011232,2]
[15239,1714329059793,-500.0,0.00011232,2]
[15241,1714329059811,-500.0,0.00011232,2]
[15242,1714329059820,-500.0,0.00011232,2]
[15243,1714329059830,-500.0,0.00011232,2]
[15245,1714329059849,-500.0,0.00011232,2]
[15247,1714329059868,-500.0,0.00011232,2]
[15248,1714329059877,-500.0,0.00011232,2]
[15249,1714329059887,-500.0,0.00011232,2]
[15250,1714329059896,-500.0,0.00011232,2]
[15251,1714329059905,-500.0,0.00011232,2]
[15252,1714329059914,-500.0,0.00011232,2]
[15253,1714329059923,-500.0,0.00011232,2]
[15254,1714329059932,-500.0,0.00011232,2]
[15255,1714329059941,-500.0,0.00011232,2]
[15256,1714329059951,-253.3468697,0.00011232,2]
[15257,1714329059959,-628.03,0.00011232,2]
[15258,1714329059969,-500.0,0.00011232,2]
[15259,1714329059979,-500.0,0.00011232,2]
[15260,1714329059988,-500.0,0.00011232,2]
[15261,1714329059998,-500.0,0.00011232,2]
[15262,1714329060007,-500.0,0.00011232,2]
[15263,1714329060017,-720.76,0.00011232,2]
[15264,1714329060026,-500.0,0.00011232,2]
[15265,1714329060036,-500.0,0.00011232,2]
[15266,1714329060045,-1178.77,0.00011232,2]
[15267,1714329060054,-500.0,0.00011232,2]
[15268,1714329060065,-500.0,0.00011232,2]
[15269,1714329060074,-500.0,0.00011232,2]
[15270,1714329060083,-500.0,0.00011232,2]
[15271,1714329060093,-500.0,0.00011232,2]
[15272,1714329060102,-707.71,0.00011232,2]
[15273,1714329060111,-832.16,0.00011232,2]
[15274,1714329060120,-500.0,0.00011232,2]
[15275,1714329060129,-605.1,0.00011232,2]
[15277,1714329060147,-500.0,0.00011232,2]
[15279,1714329060168,-500.0,0.00011232,2]
[15281,1714329060187,-500.0,0.00011232,2]
[15283,1714329060205,-500.0,0.00011232,2]
[15285,1714329060223,-585.93,0.00011232,2]
[15287,1714329060242,-500.0,0.00011232,2]
[15289,1714329060260,-500.0,0.00011232,2]
[15291,1714329060278,-500.0,0.00011232,2]
[15293,1714329060296,-1025.86,0.00011232,2]
[15294,1714329060305,-534.27,0.00011232,2]
[15295,1714329060314,-500.0,0.00011232,2]
[15296,1714329060323,-773.75,0.00011232,2]
[15297,1714329060332,-500.0,0.00011232,2]
[15299,1714329060350,-500.0,0.00011232,2]
[15301,1714329060368,-500.0,0.00011232,2]
[15303,1714329060386,-500.0,0.00011232,2]
[15305,1714329060404,-1055.21,0.00011232,2]
[15307,1714329060422,-731.11,0.00011232,2]
[15309,1714329060439,-500.0,0.00011232,2]
[15311,1714329060457,-500.0,0.00011232,2]
[15313,1714329060475,-500.0,0.00011232,2]
[15315,1714329060493,-500.0,0.00011232,2]
[15317,1714329060511,-500.0,0.00011232,2]
[15319,1714329060529,-500.0,0.00011232,2]
[15321,1714329060546,-500.0,0.00011232,2]
[15323,1714329060565,-500.0,0.00011232,2]
[15325,1714329060583,-500.0,0.00011232,2]
[15327,1714329060601,-500.0,0.00011232,2]
[15329,1714329060619,-503.90477558,0.00011232,2]
[15331,1714329060637,-500.0,0.00011232,2]
[15333,1714329060655,-500.0,0.00011232,2]
[15335,1714329060678,-500.0,0.00011232,2]
[15337,1714329060697,-500.0,0.00011232,2]
[15339,1714329060715,-500.0,0.00011232,2]
[15341,1714329060735,-500.0,0.00011232,2]
[15343,1714329060757,-1390.68,0.00011232,2]
[15345,1714329060776,-500.0,0.00011232,2]
[15347,1714329060794,-500.0,0.00011232,2]
[15349,1714329060813,-638.1,0.00011232,2]
[15351,1714329060832,-500.0,0.00011232,2]
[15353,1714329060851,-508.26,0.00011232,2]
[15355,1714329060868,-500.0,0.00011232,2]
[15357,1714329060886,-500.0,0.00011232,2]
[15359,1714329060905,-500.0,0.00011232,2]
[15361,1714329060922,-500.0,0.00011232,2]
[15363,1714329060940,-500.0,0.00011232,2]
[15365,1714329060958,-500.0,0.00011232,2]
[15367,1714329060976,-500.0,0.00011232,2]
[15369,1714329060994,-1180.8,0.00011232,2]
[15371,1714329061012,-500.0,0.00011232,2]
[15373,1714329061030,-500.0,0.00011232,2]
[15375,1714329061048,-500.0,0.00011232,2]
[15377,1714329061065,-504.06575479,0.00011232,2]
[15379,1714329061085,-652.81,0.00011232,2]
[15381,1714329061102,-500.0,0.00011232,2]
[15383,1714329061120,-500.0,0.00011232,2]
[15385,1714329061138,-755.72,0.00011232,2]
[15387,1714329061155,-500.0,0.00011232,2]
[15389,1714329061173,-500.0,0.00011232,2]
[15391,1714329061191,-500.0,0.00011232,2]
[15392,1714329061200,-500.0,0.00011232,2]
[15393,1714329061208,-531.93,0.00011232,2]
[15394,1714329061217,-500.0,0.00011232,2]
[15395,1714329061226,-649.44431365,0.00011232,2]
[15396,1714329061235,-500.0,0.00011232,2]
[15397,1714329061244,-500.0,0.00011232,2]
[15398,1714329061253,-502.6754843,0.00011232,2]
[15399,1714329061262,-161.64220559,0.00011232,2]
[15400,1714329061271,-549.22,0.00011232,2]
[15401,1714329061280,-500.0,0.00011232,2]
[15402,1714329061289,-1788.12,0.00011232,2]
[15403,1714329061299,-500.0,0.00011232,2]
[15404,1714329061308,-500.0,0.00011232,2]
[15405,1714329061318,-500.0,0.00011232,2]
[15406,1714329061330,-500.0,0.00011232,2]
[15407,1714329061339,-150.0,0.00011232,2]
[15408,1714329061347,-500.0,0.00011232,2]
[15409,1714329061357,-705.96,0.00011232,2]
[15410,1714329061366,-534.17,0.00011232,2]
[15411,1714329061375,-500.0,0.00011232,2]
[15412,1714329061384,-500.0,0.00011232,2]
[15413,1714329061394,-500.0,0.00011232,2]
[15414,1714329061403,-500.0,0.00011232,2]
[15415,1714329061411,-500.0,0.00011232,2]
[15416,1714329061420,-500.0,0.00011232,2]
[15417,1714329061429,-500.0,0.00011232,2]
[15418,1714329061439,-800.21,0.00011232,2]
[15419,1714329061448,-755.04,0.00011232,2]
[15420,1714329061457,-500.0,0.00011232,2]
[15421,1714329061466,-500.0,0.00011232,2]
[15422,1714329061476,-1031.54,0.00011232,2]
[15423,1714329061486,-500.0,0.00011232,2]
[15424,1714329061495,-500.0,0.00011232,2]
[15425,1714329061504,-569.87,0.00011232,2]
[15426,1714329061512,-500.0,0.00011232,2]
[15427,1714329061522,-500.0,0.00011232,2]
[15428,1714329061531,-500.0,0.00011232,2]
[15429,1714329061540,-1008.22,0.00011232,2]
[15430,1714329061549,-718.07,0.00011232,2]
[15431,1714329061558,-500.0,0.00011232,2]
[15432,1714329061567,-500.0,0.00011232,2]
[15433,1714329061578,-500.0,0.00011232,2]
[15434,1714329061586,-500.0,0.00011232,2]
[15435,1714329061595,-500.0,0.00011232,2]
[15437,1714329061614,-500.0,0.00011232,2]
[15439,1714329061633,-1114.07,0.00011232,2]
[15440,1714329061642,-500.0,0.00011232,2]
[15441,1714329061651,-500.0,0.00011232,2]
[15442,1714329061661,-500.0,0.00011232,2]
[15443,1714329061673,-500.0,0.00011232,2]
[15445,1714329061690,-500.0,0.00011232,2]
[15447,1714329061711,-500.0,0.00011232,2]
[15449,1714329061729,-500.0,0.00011232,2]
[15451,1714329061755,-500.0,0.00011232,2]
[15453,1714329061774,-645.11,0.00011232,2]
[15455,1714329061794,-506.51995861,0.00011232,2]
[15457,1714329061812,-500.0,0.00011232,2]
[15459,1714329061832,-768.98,0.00011232,2]
[15461,1714329061850,-648.5,0.00011232,2]
[15463,1714329061867,-717.43,0.00011232,2]
[15465,1714329061885,-500.0,0.00011232,2]
[15467,1714329061903,-570.97018506,0.00011232,2]
[15469,1714329061921,-500.0,0.00011232,2]
[15471,1714329061939,-1373.18,0.00011232,2]
[15473,1714329061958,-500.0,0.00011232,2]
[15475,1714329061977,-1449.07,0.00011232,2]
[15476,1714329061986,-500.0,0.00011232,2]
[15477,1714329061996,-500.0,0.00011232,2]
[15478,1714329062005,-500.0,0.00011232,2]
[15479,1714329062014,-500.0,0.00011232,2]
[15480,1714329062024,-501.1255681,0.00011232,2]
[15481,1714329062033,-500.0,0.00011232,2]
[15483,1714329062052,-400.92,0.00011232,2]
[15485,1714329062071,-573.18,0.00011232,2]
[15487,1714329062091,-734.98,0.00011232,2]
[15489,1714329062109,-500.0,0.00011232,2]
[15491,1714329062127,-500.0,0.00011232,2]
[15493,1714329062146,-500.0,0.00011232,2]
[15495,1714329062165,-500.0,0.00011232,2]
[15497,1714329062184,-500.0,0.00011232,2]
[15499,1714329062204,-500.0,0.00011232,2]
[15501,1714329062223,-500.0,0.00011232,2]
[15503,1714329062243,-1048.48,0.00011232,2]
[15505,1714329062262,-683.7,0.00011232,2]
[15507,1714329062282,-500.0,0.00011232,2]
[15509,1714329062303,-572.97,0.00011232,2]
[15511,1714329062325,-540.29785386,0.00011232,2]
[15513,1714329062346,-500.0,0.00011232,2]
[15515,1714329062366,-1722.94,0.00011232,2]
[15517,1714329062385,-779.67,0.00011232,2]
[15518,1714329062395,-555.02,0.00011232,2]
[15519,1714329062405,-500.0,0.00011232,2]
[15520,1714329062415,-518.53853564,0.00011232,2]
[15521,1714329062426,-500.0,0.00011232,2]
[15523,1714329062447,-500.0,0.00011232,2]
[15525,1714329062467,-501.69,0.00011232,2]
[15527,1714329062487,-500.0,0.00011232,2]
[15529,1714329062507,-500.0,0.00011232,2]
[15531,1714329062526,-508.41,0.00011232,2]
[15533,1714329062545,-1000.0,0.00011232,2]
[15535,1714329062564,-1037.99,0.00011232,2]
[15537,1714329062585,-500.0,0.00011232,2]
[15539,1714329062604,-500.0,0.00011232,2]
[15541,1714329062624,-500.0,0.00011232,2]
[15543,1714329062644,-500.0,0.00011232,2]
[15545,1714329062669,-500.0,0.00011232,2]
[15547,1714329062690,-504.43625195,0.00011232,2]
[15549,1714329062712,-500.0,0.00011232,2]
[15551,1714329062733,-519.57,0.00011232,2]
[15553,1714329062756,-500.0,0.00011232,2]
[15555,1714329062775,-500.0,0.00011232,2]
[15557,1714329062795,-500.0,0.00011232,2]
[15559,1714329062814,-650.14,0.00011232,2]
[15561,1714329062834,-617.57,0.00011232,2]
[15563,1714329062853,-543.15209607,0.00011232,2]
[15565,1714329062873,-500.0,0.00011232,2]
[15567,1714329062891,-500.0,0.00011232,2]
[15569,1714329062912,-764.8,0.00011232,2]
[15571,1714329062935,-886.38,0.00011232,2]
[15572,1714329062945,-500.0,0.00011232,2]
[15573,1714329062954,-501.28669475,0.00011232,2]
[15574,1714329062964,-500.0,0.00011232,2]
[15575,1714329062974,-500.0,0.00011232,2]
[15577,1714329062993,-501.4758665,0.00011232,2]
[15578,1714329063003,-500.0,0.00011232,2]
[15579,1714329063013,-516.12,0.00011232,2]
[15580,1714329063023,-500.0,0.00011232,2]
[15581,1714329063032,-780.48,0.00011232,2]
[15582,1714329063042,-500.0,0.00011232,2]
[15583,1714329063051,-500.0,0.00011232,2]
[15584,1714329063061,-500.0,0.00011232,2]
[15585,1714329063070,-500.0,0.00011232,2]
[15586,1714329063082,-500.0,0.00011232,2]
[15587,1714329063091,-500.0,0.00011232,2]
[15588,1714329063101,-528.05,0.00011232,2]
[15589,1714329063110,-500.0,0.00011232,2]
[15591,1714329063129,-1205.16,0.00011232,2]
[15592,1714329063139,-658.26,0.00011232,2]
[15593,1714329063149,-704.8,0.00011232,2]
[15594,1714329063159,-500.0,0.00011232,2]
[15595,1714329063169,-500.0,0.00011232,2]
[15597,1714329063188,-500.0,0.00011232,2]
[15598,1714329063197,-500.0,0.00011232,2]
[15599,1714329063207,-1863.44,0.00011232,2]
[15601,1714329063226,-688.67,0.00011232,2]
[15603,1714329063245,-500.0,0.00011232,2]
[15605,1714329063265,-812.83,0.00011232,2]
[15607,1714329063284,-500.0,0.00011232,2]
[15609,1714329063304,-562.73,0.00011232,2]
[15611,1714329063323,-500.0,0.00011232,2]
[15613,1714329063345,-899.04,0.00011232,2]
[15615,1714329063364,-504.10873019,0.00011232,2]
[15617,1714329063384,-500.0,0.00011232,2]
[15619,1714329063406,-500.0,0.00011232,2]
[15621,1714329063429,-1190.14,0.00011232,2]
[15623,1714329063449,-500.0,0.00011232,2]
[15625,1714329063469,-626.13,0.00011232,2]
[15627,1714329063488,-500.0,0.00011232,2]
[15628,1714329063497,-669.38,0.00011232,2]
[15629,1714329063507,-876.81,0.00011232,2]
[15630,1714329063517,-500.0,0.00011232,2]
[15631,1714329063526,-500.0,0.00011232,2]
[15632,1714329063535,-306.06473871,0.00011232,2]
[15633,1714329063545,-500.0,0.00011232,2]
[15634,1714329063554,-752.63,0.00011232,2]
[15635,1714329063563,-500.0,0.00011232,2]
[15636,1714329063573,-500.0,0.00011232,2]
[15637,1714329063587,-1089.32,0.00011232,2]
[15638,1714329063598,-765.33,0.00011232,2]
[15639,1714329063607,-1114.49,0.00011232,2]
[15640,1714329063618,-501.7346092,0.00011232,2]
[15641,1714329063627,-505.43998005,0.00011232,2]
[15643,1714329063647,-867.7,0.00011232,2]
[15645,1714329063678,-500.0,0.00011232,2]
[15647,1714329063696,-500.0,0.00011232,2]
[15649,1714329063716,-500.0,0.00011232,2]
[15650,1714329063728,-500.0,0.00011232,2]
[15651,1714329063737,-500.0,0.00011232,2]
[15653,1714329063757,-500.0,0.00011232,2]
[15654,1714329063766,-500.0,0.00011232,2]
[15655,1714329063776,-508.53,0.00011232,2]
[15657,1714329063797,-500.0,0.00011232,2]
[15658,1714329063808,-1019.77,0.00011232,2]
[15659,1714329063817,-500.0,0.00011232,2]
[15661,1714329063840,-605.8,0.00011232,2]
[15663,1714329063860,-500.0,0.00011232,2]
[15665,1714329063883,-500.0,0.00011232,2]
[15667,1714329063906,-500.0,0.00011232,2]
[15669,1714329063926,-500.0,0.00011232,2]
[15671,1714329063947,-500.0,0.00011232,2]
[15672,1714329063957,-500.0,0.00011232,2]
[15673,1714329063967,-500.0,0.00011232,2]
[15674,1714329063978,-1894.72,0.00011232,2]
[15675,1714329063987,-517.51,0.00011232,2]
[15676,1714329063996,-500.0,0.00011232,2]
[15677,1714329064006,-500.0,0.00011232,2]
[15679,1714329064026,-500.0,0.00011232,2]
[15680,1714329064035,-930.04,0.00011232,2]
[15681,1714329064045,-500.0,0.00011232,2]
[15683,1714329064064,-830.99,0.00011232,2]
[15685,1714329064085,-500.0,0.00011232,2]
[15687,1714329064104,-1200.14,0.00011232,2]
[15689,1714329064123,-582.79,0.00011232,2]
[15691,1714329064143,-551.5,0.00011232,2]
[15693,1714329064162,-500.0,0.00011232,2]
[15694,1714329064172,-500.0,0.00011232,2]
[15695,1714329064182,-568.27,0.00011232,2]
[15696,1714329064191,-500.0,0.00011232,2]
[15697,1714329064201,-500.0,0.00011232,2]
[15698,1714329064210,-501.12281534,0.00011232,2]
[15699,1714329064220,-1415.69,0.00011232,2]
[15700,1714329064230,-500.0,0.00011232,2]
[15701,1714329064239,-500.0,0.00011232,2]
[15702,1714329064249,-500.0,0.00011232,2]
[15703,1714329064259,-661.37,0.00011232,2]
[15704,1714329064268,-500.0,0.00011232,2]
[15705,1714329064278,-1488.72,0.00011232,2]